[Event "SWE-ch Junior 2019"]
[Site "Eskilstuna"]
[Date "2019.07.13"]
[Round "8.5"]
[White "Petersson, Baldur Teodor"]
[Black "Joensson, Jacob"]
[Result "1-0"]
[ECO "A08"]
[WhiteElo "2179"]
[BlackElo "1981"]
[Annotator "NA"]
[PlyCount "91"]
[EventDate "2019.07.06"]
[EventType "tourn"]
[EventCountry "SWE"]
[SourceTitle "playchess.com"]
[Source "ChessBase"]
[SourceQuality "1"]
[TimeControl "40/5400+30:1800+30"]

1. e4 {[%emt 0:00:00]} e6 {[%emt 0:00:00]} 2. d3 {[%emt 0:00:00]} d5 {[%emt 0:00:00]} 3. Nd2 {[%emt 0:00:00]} c5 {[%emt 0:00:00]} 4. Ngf3 {[%emt 0:00:03]} Nc6 {[%emt 0:00:03]} 5. g3 {[%emt 0:00:14]} g6 {[%emt 0:00:05]} 6. Bg2 {[%emt 0:00:23]} Bg7 {[%emt 0:00:07]} 7. O-O {[%emt 0:00:09]} Nge7 {[%emt 0:00:13]} 8. Re1 {[%emt 0:00:34]} b6 {[%emt 0:00:15]} 9. exd5 {[%emt 0:06:30]} exd5 {[%emt 0:09:09]} 10. d4 {[%emt 0:01:39]} O-O {[%emt 0:10:03]} 11. dxc5 {[%emt 0:01:31]} bxc5 {[%emt 0:00:07]} 12. Nb3 {[%emt 0:01:09]} Qb6 {[%emt 0:07:06]} 13. c3 {[%emt 0:02:17]} Bg4 {[%emt 0:19:35]} 14. h3 {[%emt 0:02:54]} Bxf3 {[%emt 0:01:29]} 15. Qxf3 {[%emt 0:00:13]} Rad8 {[%emt 0:03:03]} 16. Qe2 {[%emt 0:09:05]} Rd7 {[%emt 0:08:11]} 17. h4 {[%emt 0:07:37]} Nf5 {[%emt 0:07:21]} 18. Bh3 {[%emt 0:05:02]} Re7 {[%emt 0:01:39]} 19. Qf1 {[%emt 0:01:49]} Rxe1 {[%emt 0:05:09]} 20. Qxe1 {[%emt 0:00:08]} c4 {[%emt 0:01:56]} 21. Bxf5 {[%emt 0:09:24]} gxf5 {[%emt 0:00:10]} 22. Nd2 {[%emt 0:11:21]} Ne5 {[%emt 0:02:22]} 23. Qe2 {[%emt 0:03:00]} Nd3 {[%emt 0:01:45]} 24. Nf3 {[%emt 0:01:11]} Rb8 {[%emt 0:00:56]} 25. Kg2 {[%emt 0:07:54]} Nxc1 {[%emt 0:02:08]} 26. Rxc1 {[%emt 0:00:05]} Qxb2 {[%emt 0:00:05]} 27. Rc2 {[%emt 0:00:11]} Qa1 {[%emt 0:01:57]} 28. Qe7 {[%emt 0:07:41]} Qd1 {[%emt 0:03:46]} 29. Rd2 {[%emt 0:01:15]} Qc1 {[%emt 0:06:25]} 30. Rxd5 {[%emt 0:00:28]} Qxc3 {[%emt 0:01:08]} 31. Rxf5 {[%emt 0:01:38]} Rf8 {[%emt 0:00:25]} 32. Qxa7 {[%emt 0:02:28]} Qd3 {[%emt 0:01:01]} 33. Rf4 {[%emt 0:00:52]} c3 {[%emt 0:00:30]} 34. Qc7 {[%emt 0:00:13]} Qd8 {[%emt 0:00:46]} 35. Rxf7 {[%emt 0:01:10]} Qxc7 {[%emt 0:00:22]} 36. Rxc7 {[%emt 0:00:07]} Ra8 {[%emt 0:00:07]} 37. Ng5 {[%emt 0:01:04]} Rxa2 {[%emt 0:00:39]} 38. Rc8+ {[%emt 0:00:07]} Bf8 {[%emt 0:00:06]} 39. Ne6 {[%emt 0:01:13]} Kf7 {[%emt 0:00:07]} 40. Nxf8 {[%emt 0:00:06]} c2 {[%emt 0:00:19]} 41. Nxh7 {[%emt 0:30:09]} Ke6 {[%emt 0:30:25]} 42. Ng5+ {[%emt 0:00:06]} Kd5 {[%emt 0:00:11]} 43. h5 {[%emt 0:00:17]} Kd4 {[%emt 0:00:51]} 44. h6 {[%emt 0:00:12]} Kd3 {[%emt 0:00:07]} 45. h7 {[%emt 0:00:06]} Ra8 {[%emt 0:00:05]} 46. h8=Q {[%emt 0:00:22] Kd4} 1-0

[Event "SWE-ch Junior 2019"]
[Site "Eskilstuna"]
[Date "2019.07.14"]
[Round "9.1"]
[White "Johnson, Daniel"]
[Black "Carlsson, Ludvig"]
[Result "0-1"]
[ECO "A43"]
[WhiteElo "2212"]
[BlackElo "2218"]
[Annotator "ChessBase"]
[PlyCount "80"]
[EventDate "2019.07.06"]
[EventType "tourn"]
[EventCountry "SWE"]
[SourceTitle "playchess.com"]
[Source "ChessBase"]
[SourceQuality "1"]
[TimeControl "40/5400+30:1800+30"]

1. d4 {[%emt 0:12:06]} e6 {[%emt 0:00:00]} 2. c4 {[%emt 0:00:04]} c5 {[%emt 0:00:00]} 3. d5 {[%emt 0:00:18]} exd5 {[%emt 0:00:00]} 4. cxd5 {[%emt 0:00:05]} d6 {[%emt 0:00:08]} 5. Nc3 {[%emt 0:00:48]} g6 {[%emt 0:00:08]} 6. e4 {[%emt 0:00:25]} Bg7 {[%emt 0:00:07]} 7. Nge2 {[%emt 0:03:22]} a6 {[%emt 0:05:42]} 8. a4 {[%emt 0:01:09]} Nd7 {[%emt 0:00:11]} 9. f3 {[%emt 0:02:14]} Ne5 {[%emt 0:01:48]} 10. Ng3 {[%emt 0:03:45]} f5 {[%emt 0:04:58]} 11. exf5 {[%emt 0:13:35]} gxf5 {[%emt 0:01:05]} 12. Be2 {[%emt 0:09:33]} Qh4 {[%emt 0:01:18]} 13. O-O {[%emt 0:02:24]} h5 {[%emt 0:01:27]} 14. Qe1 {[%emt 0:04:55]} Ne7 {[%emt 0:02:58]} 15. Nh1 {[%emt 0:25:58]} Qd4+ {[%emt 0:02:08]} 16. Nf2 {[%emt 0:00:45]} c4 {[%emt 0:06:23]} 17. Bg5 {[%emt 0:02:07]} Nf7 {[%emt 0:05:33]} 18. Rd1 {[%emt 0:05:36]} Qc5 {[%emt 0:01:20]} 19. Bh4 {[%emt 0:04:12]} Ng6 {[%emt 0:00:37]} 20. Kh1 {[%emt 0:06:06]} Nxh4 {[%emt 0:06:16]} 21. Nfe4 {[%emt 0:00:25]} fxe4 {[%emt 0:00:02]} 22. Qxh4 {[%emt 0:00:02]} e3 {[%emt 0:01:27]} 23. f4 {[%emt 0:00:47]} Bg4 {[%emt 0:00:23]} 24. Rde1 {[%emt 0:00:47]} Kf8 {[%emt 0:01:36]} 25. Ne4 {[%emt 0:00:24]} Qxd5 {[%emt 0:00:28]} 26. Ng5 {[%emt 0:00:27]} Bxe2 {[%emt 0:00:41]} 27. Rxe2 {[%emt 0:00:16]} Re8 {[%emt 0:00:24]} 28. Rfe1 {[%emt 0:00:52]} Qf5 {[%emt 0:01:06]} 29. Rxe3 {[%emt 0:00:30]} Rxe3 {[%emt 0:00:08]} 30. Rxe3 {[%emt 0:00:30]} Nxg5 {[%emt 0:02:06]} 31. Qe1 {[%emt 0:00:29]} Nh7 {[%emt 0:01:05]} 32. Re8+ {[%emt 0:00:30]} Kf7 {[%emt 0:00:04]} 33. Re7+ {[%emt 0:00:27]} Kg8 {[%emt 0:00:18]} 34. Rxb7 {[%emt 0:00:34]} Nf6 {[%emt 0:00:30]} 35. h3 {[%emt 0:00:21]} Ne4 {[%emt 0:00:17]} 36. Qb4 {[%emt 0:00:34]} Qxf4 {[%emt 0:00:17]} 37. Qxc4+ {[%emt 0:00:19]} Kh7 {[%emt 0:00:07]} 38. Qd3 {[%emt 0:00:21]} Kh6 {[%emt 0:00:29]} 39. Qc2 {[%emt 0:00:49]} Qf1+ {[%emt 0:00:09]} 40. Kh2 {[%emt 0:00:28]} Be5+ {[%emt 0:00:05]} 0-1

[Event "SWE-ch Junior 2019"]
[Site "Eskilstuna"]
[Date "2019.07.14"]
[Round "9.2"]
[White "Sorensen, Hampus"]
[Black "Pantzar, Milton"]
[Result "1-0"]
[ECO "D15"]
[WhiteElo "2352"]
[BlackElo "2357"]
[Annotator "ChessBase"]
[PlyCount "75"]
[EventDate "2019.07.06"]
[EventType "tourn"]
[EventCountry "SWE"]
[SourceTitle "playchess.com"]
[Source "ChessBase"]
[SourceQuality "1"]
[TimeControl "40/5400+30:1800+30"]

1. d4 {[%emt 0:00:13]} d5 {[%emt 0:00:00]} 2. c4 {[%emt 0:00:40]} c6 {[%emt 0:00:13]} 3. Nf3 {[%emt 0:00:26]} Nf6 {[%emt 0:00:20]} 4. Nc3 {[%emt 0:00:26]} dxc4 {[%emt 0:01:05]} 5. e4 {[%emt 0:00:39]} b5 {[%emt 0:00:43]} 6. Be2 {[%emt 0:01:47]} b4 {[%emt 0:07:08]} 7. e5 {[%emt 0:04:10]} bxc3 {[%emt 0:02:43]} 8. exf6 {[%emt 0:00:07]} exf6 {[%emt 0:02:10]} 9. bxc3 {[%emt 0:01:07]} Bd6 {[%emt 0:06:49]} 10. Nd2 {[%emt 0:04:40]} O-O {[%emt 0:07:32]} 11. Nxc4 {[%emt 0:01:32]} Bc7 {[%emt 0:00:46]} 12. O-O {[%emt 0:03:13]} Ba6 {[%emt 0:04:51]} 13. Ne3 {[%emt 0:10:35]} Bxe2 {[%emt 0:02:15]} 14. Qxe2 {[%emt 0:00:32]} Nd7 {[%emt 0:02:59]} 15. Qg4 {[%emt 0:14:40]} g6 {[%emt 0:04:03]} 16. Rd1 {[%emt 0:09:04]} Nb6 {[%emt 0:04:04]} 17. c4 {[%emt 0:03:08]} f5 {[%emt 0:04:58]} 18. Qf3 {[%emt 0:04:31]} f4 {[%emt 0:05:21]} 19. Ng4 {[%emt 0:00:27]} Qg5 {[%emt 0:15:50]} 20. h4 {[%emt 0:06:39]} Qxh4 {[%emt 0:00:10]} 21. Bxf4 {[%emt 0:00:17]} Bxf4 {[%emt 0:06:35]} 22. Qxf4 {[%emt 0:00:06]} Qd8 {[%emt 0:01:04]} 23. Rd3 {[%emt 0:04:51]} f5 {[%emt 0:04:53]} 24. Ne5 {[%emt 0:00:48]} Qf6 {[%emt 0:01:35]} 25. Rad1 {[%emt 0:04:32]} Rad8 {[%emt 0:01:22]} 26. Qh6 {[%emt 0:07:41]} Rfe8 {[%emt 0:02:33]} 27. f4 {[%emt 0:03:34]} Nd7 {[%emt 0:01:52]} 28. Qh3 {[%emt 0:01:37]} Nf8 {[%emt 0:04:11]} 29. Qf3 {[%emt 0:02:08]} Rd6 {[%emt 0:00:19]} 30. d5 {[%emt 0:02:43]} cxd5 {[%emt 0:01:13]} 31. cxd5 {[%emt 0:00:46]} Nd7 {[%emt 0:01:22]} 32. Nc4 {[%emt 0:00:54]} Ra6 {[%emt 0:00:08]} 33. d6 {[%emt 0:02:00]} Rxa2 {[%emt 0:02:13]} 34. Ne5 {[%emt 0:03:01]} Nxe5 {[%emt 0:01:47]} 35. fxe5 {[%emt 0:00:02]} Qxe5 {[%emt 0:00:27]} 36. Re3 {[%emt 0:01:27]} Qc5 {[%emt 0:00:09]} 37. Qd5+ {[%emt 0:00:07]} Qxd5 {[%emt 0:00:07]} 38. Rxe8+ {[%emt 0:00:05]} 1-0

[Event "SWE-ch Junior 2019"]
[Site "Eskilstuna"]
[Date "2019.07.14"]
[Round "9.3"]
[White "Sundin, Emanuel"]
[Black "Rasti, Arvin"]
[Result "0-1"]
[ECO "B78"]
[WhiteElo "2134"]
[BlackElo "2220"]
[Annotator "ChessBase"]
[PlyCount "52"]
[EventDate "2019.07.06"]
[EventType "tourn"]
[EventCountry "SWE"]
[SourceTitle "playchess.com"]
[Source "ChessBase"]
[SourceQuality "1"]
[TimeControl "40/5400+30:1800+30"]

1. e4 {[%emt 0:00:00]} c5 {[%emt 0:00:00]} 2. Nf3 {[%emt 0:00:00]} d6 {[%emt 0:00:00]} 3. d4 {[%emt 0:00:04]} cxd4 {[%emt 0:00:00]} 4. Nxd4 {[%emt 0:00:05]} Nf6 {[%emt 0:00:00]} 5. Nc3 {[%emt 0:00:05]} g6 {[%emt 0:00:05]} 6. Be3 {[%emt 0:01:06]} Bg7 {[%emt 0:00:15]} 7. f3 {[%emt 0:00:10]} O-O {[%emt 0:00:05]} 8. Qd2 {[%emt 0:00:11]} Nc6 {[%emt 0:00:06]} 9. Bc4 {[%emt 0:00:39]} Bd7 {[%emt 0:00:03]} 10. O-O-O {[%emt 0:00:09]} Rc8 {[%emt 0:00:05]} 11. Bb3 {[%emt 0:00:06]} Ne5 {[%emt 0:00:04]} 12. Kb1 {[%emt 0:00:38]} a6 {[%emt 0:00:22]} 13. h4 {[%emt 0:08:11]} h5 {[%emt 0:00:04]} 14. g4 {[%emt 0:01:28]} hxg4 {[%emt 0:00:18]} 15. h5 {[%emt 0:00:34]} Nxh5 {[%emt 0:03:36]} 16. Bh6 {[%emt 0:01:19]} Rc5 {[%emt 0:09:16]} 17. Rdg1 {[%emt 0:37:56]} Kh7 {[%emt 0:13:05]} 18. Bxg7 {[%emt 0:03:21]} Kxg7 {[%emt 0:00:02]} 19. fxg4 {[%emt 0:03:40]} Bxg4 {[%emt 0:01:06]} 20. Nf5+ {[%emt 0:03:57]} Bxf5 {[%emt 0:02:41]} 21. Rxh5 {[%emt 0:05:01]} Rh8 {[%emt 0:00:45]} 22. Rxf5 {[%emt 0:01:40]} Rh3 {[%emt 0:02:40]} 23. Bxf7 {[%emt 0:04:45]} Rcxc3 {[%emt 0:02:22]} 24. bxc3 {[%emt 0:03:51]} Qb6+ {[%emt 0:00:13]} 25. Bb3 {[%emt 0:03:59]} Qxg1+ {[%emt 0:00:15]} 26. Kb2 {[%emt 0:00:05]} gxf5 {[%emt 0:00:23]} 0-1